Cogmind - Beta 13 @@@ ROGUE MODE // 2024.04.06 @ 16:45:51 Player: ChromeKnight Result: Destroyed by H-71 Marshal with Heavy Mass Driver Performance ------------- Evolutions (6) 3000 Regions Visited (15) 3000 Robots Destroyed (114) 570 Value Destroyed (4179) 4179 Prototype IDs (11) 220 Alien Tech Used (0) 0 Bonus (419) 419 TOTAL SCORE: 11388 Bonus ------- Follower Combat Kills 55 Entered DSFs 500 Friendly Fire -136 Cogmind --------- Core Integrity 0/1150 Matter 206/300 Energy 0/150 System Corruption 0% Temperature Cool (0) Movement Core (100) Ox1 Location -4/DSF Parts ------- > --- POWER (3) -------- Micro Fission Core > --- PROPULSION (6) --- Nuclear Pulse Thruster Q-thruster Q-thruster Q-thruster > --- UTILITY (7) ------ Advanced Signal Interpreter > --- WEAPON (3) ------- (None) > --- INVENTORY (5) ---- Advanced Shield Generator Advanced Drone Bay (2/2) Gamma Bomb Array Thunder Hammer Peak State ------------ > --- POWER ------------ Fission Core Fission Core Light Neutrino Core > --- PROPULSION ------- Heavy Treads Heavy Treads > --- UTILITY ---------- Improved Cooling System Improved Cooling System Huge Storage Unit Weapon Mount Improved Light Armor Plating Improved Light Armor Plating Force Field > --- WEAPON ----------- Improved Spread Laser Improved Spread Laser Improved Spread Laser > --- INVENTORY -------- Improved Deuterium Engine Light Angular Momentum Engine Fission Core Fission Core Heavy Treads Advanced Sensor Array Improved Signal Interpreter Improved Particle Charger Improved Weapon Cycler Force Booster Hardened Medium Armor Plating Makeshift Light Armor Plating Thermal Shield Advanced Shield Generator Force Field Force Field Mini Drone Bay Tesla Rifle Tesla Rifle Disruptor Cannon Heavy Plasma Cannon Heavy Shock Bomb Launcher Chainsword [Rating: 93] Favorites ----------- Power Heavy Deuterium Engine Engine Heavy Deuterium Engine Power Core Fission Core Reactor Cold Fusion Reactor Propulsion Heavy Treads Treads Heavy Treads Leg Aluminum Leg Wheel Wheel Flight Unit Nuclear Pulse Thruster Utility Improved Cooling System Device Improved Cooling System Storage Large Storage Unit Processor Improved Targeting Computer Hackware Hacking Suite Protection Improved Light Armor Plating Weapon Improved Spread Laser Energy Gun Improved Spread Laser Energy Cannon Heavy Plasma Cannon Ballistic Gun Subdweller Machine Gun Launcher Subdweller Shrapnel Launcher Special Weapon Flamer Impact Weapon Heavy Flail Slashing Weapon Chainsword Build | -11 -10 -10 -10 -8 -7 -7 -7 -6 -6 -6 -5 -5 -5 -4 -4 ------- Run | Yrd Mat Min Sub Mat Fac Was Fac Fac Low Low Fac Was Fac Fac DSF Slots Evolved 12 | . . . . 4 2 . . 2 . . 2 . . 2 . Power 2 | . . . . 1 . . . 1 . . . . . . . Propulsion 4 | . . . . 1 1 . . . . . . . . 2 . Utility 5 | . . . . 2 1 . . 1 . . 1 . . . . Weapon 1 | . . . . . . . . . . . 1 . . . . Parts Attached 120 | 6 . . 11 22 2 12 9 15 . 1 9 3 18 1 11 Power 16 | 1 . . 1 3 . 2 . 5 . . 2 . 1 . 1 Engine 9 | 1 . . 1 3 . 1 . 3 . . . . . . . Core 6 | . . . . . . . . 2 . . 2 . 1 . 1 Reactor 1 | . . . . . . 1 . . . . . . . . . Propulsion 30 | 2 . . 1 6 1 3 1 1 . . . . 7 . 8 Treads 4 | . . . . . . 2 1 1 . . . . . . . Leg 11 | 2 . . 1 6 1 1 . . . . . . . . . Wheel 1 | . . . . . . . . . . . . . 1 . . Hover . | . . . . . . . . . . . . . . . . Flight 14 | . . . . . . . . . . . . . 6 . 8 Utility 38 | 1 . . 2 5 1 5 4 5 . . 4 1 7 1 2 Device 14 | . . . . 1 . 2 . 3 . . 2 . 5 1 . Storage 4 | 1 . . 1 1 . . . . . . 1 . . . . Processor 3 | . . . . 2 . . . . . . . . . . 1 Hackware 1 | . . . . . . . . . . . . . 1 . . Protection 16 | . . . 1 1 1 3 4 2 . . 1 1 1 . 1 Artifact . | . . . . . . . . . . . . . . . . Weapon 36 | 2 . . 7 8 . 2 4 4 . 1 3 2 3 . . Energy Gun 25 | 2 . . 2 6 . 2 4 4 . 1 3 . 1 . . Energy Cannon 1 | . . . . . . . . . . . . 1 . . . Ballistic Gun 4 | . . . 4 . . . . . . . . . . . . Ballistic Cannon . | . . . . . . . . . . . . . . . . Launcher 2 | . . . . 2 . . . . . . . . . . . Special Weapon 1 | . . . 1 . . . . . . . . . . . . Impact Weapon 2 | . . . . . . . . . . . . . 2 . . Slashing Weapon 1 | . . . . . . . . . . . . 1 . . . Piercing Weapon . | . . . . . . . . . . . . . . . . Special Melee Weapon . | . . . . . . . . . . . . . . . . Unidentified Prototypes 11 | . . . . 4 . 1 1 2 . . 1 . 2 . . Corrupted Parts 2 | . . . . 2 . . . . . . . . . . . System Corruption 8 | . . . . 8 . . . . . . . . . . . Parts Lost 34 | . . . 3 3 . . 5 2 1 . 1 8 2 . 9 Power 3 | . . . 1 1 . . . . . . . 1 . . . Propulsion 9 | . . . . 1 . . . 1 . . . 1 1 . 5 Utility 12 | . . . . . . . 3 1 . . . 3 1 . 4 Weapon 10 | . . . 2 1 . . 2 . 1 . 1 3 . . . Highest Loss Streak 9 | . . . 2 1 . . 3 2 1 . 1 8 2 . 9 To Critical Strikes . | . . . . . . . . . . . . . . . . Average Slot Usage (%) 83 | . 74 71 91 93 96 86 83 85 86 86 88 50 52 62 32 Engine 11 | . 14 14 13 15 15 15 15 16 6 6 . . . . . Core 3 | . . . . . . . . 3 13 13 16 8 4 5 1 Treads 6 | . . . . . . 11 15 12 13 13 11 7 . . . Leg 10 | . 28 28 28 24 28 6 . . . . . . . . . Flight 1 | . . . . . . . . . . . . . 20 21 10 Device 11 | . . . . . 7 12 15 20 20 20 23 13 17 20 5 Storage 7 | . 14 14 14 9 7 7 7 6 6 6 5 3 . . . Processor 2 | . . . . 17 15 4 . . . . . . . . 4 Protection 9 | . . . 9 9 5 11 14 13 13 13 11 6 . 5 2 Energy Gun 12 | . 17 14 7 12 15 15 15 13 13 13 17 9 . . . Ballistic Gun 2 | . . . 13 . . . . . . . . . . . . Naked Turns 7 | . . . . . . . . . . . . 7 . . . Heaviest Build 141 | 11 11 10 26 53 53 62 78 82 76 76 141 141 24 23 23 Greatest Support 140 | 20 20 20 20 48 58 140 140 140 140 140 140 140 24 24 38 Greatest Overweight (x) 1 | . . . 1 1 . . . . . . 1 1 . . . Average Overweight (x) . | . . . . . . . . . . . . . . . . Largest Inventory Capacity 25 | 8 8 8 10 15 15 15 15 15 15 15 25 25 5 5 5 Average Capacity 13 | 6 8 8 9 12 15 15 15 15 15 15 22 16 5 5 5 Most Carried 24 | 1 8 8 10 15 15 15 15 15 13 12 24 24 5 5 5 Average Carried 12 | . 4 8 8 11 13 14 14 14 12 12 18 16 4 4 5 Final Capacity 25 | 8 8 8 10 15 15 15 15 15 15 15 25 5 5 5 5 Final Carried 24 | 1 8 8 10 15 13 15 15 12 13 12 24 5 4 5 5 Class Distribution -------------------- 44% | Mutant 35% | Scavenger-Mutant 12% | Scavenger-Tank 7% | Sprinter Dominant Class ---------------- Mutant | -10/Materials Mutant | -10/Mines Mutant | -10/Subcaves Mutant | -8/Materials Mutant | -7/Factory Scavenger-Mutant | -7/Waste Scavenger-Mutant | -7/Factory Scavenger-Mutant | -6/Factory Scavenger-Mutant | -6/Lower Caves Scavenger-Mutant | -6/Lower Caves Scavenger-Tank | -5/Factory Mutant | -5/Waste Sprinter | -5/Factory Sprinter | -4/Factory Mutant | -4/DSF Resources | -11 -10 -10 -10 -8 -7 -7 -7 -6 -6 -6 -5 -5 -5 -4 -4 ----------- Run | Yrd Mat Min Sub Mat Fac Was Fac Fac Low Low Fac Was Fac Fac DSF Matter Collected 1524 | 226 34 . 140 427 . 160 90 152 . 10 83 . 192 . 10 Remotely . | . . . . . . . . . . . . . . . . Salvage Created 4538 | . 55 54 108 748 . 414 857 1147 . 152 571 152 245 . 35 Parts 172 | . 4 1 8 40 . 4 49 35 . 3 16 . 8 . 4 Haulers Intercepted 10 | . 1 . . 2 . . 1 4 . . 1 . 1 . . Recyclers Shooed 4 | . . . . 2 . . 1 . . . 1 . . . . Parts Field Recycled . | . . . . . . . . . . . . . . . . Retrieved Matter . | . . . . . . . . . . . . . . . . Parts Self-Destructed 9 | . . . 6 . . . . . . 3 . . . . . Prevented . | . . . . . . . . . . . . . . . . Kills | -11 -10 -10 -10 -8 -7 -7 -7 -6 -6 -6 -5 -5 -5 -4 -4 ------- Run | Yrd Mat Min Sub Mat Fac Was Fac Fac Low Low Fac Was Fac Fac DSF Combat Hostiles Destroyed 82 | . . 1 3 18 . 1 19 22 . 4 11 1 1 . 1 Melee 1 | . . . . . . . . . . . . . 1 . . Guns 69 | . . 1 3 8 . 1 18 22 . 4 11 1 . . . AOE 10 | . . . . 9 . . . . . . . . . . 1 Classes Destroyed 18 | . 1 1 1 7 . 1 2 3 . 1 . . . . 1 Worker 4 | . . . . . . . 3 . . . 1 . . . . Builder 3 | . . . . 3 . . . . . . . . . . . Tunneler 2 | . . . . . . . . 1 . . . . 1 . . Hauler 10 | . 1 . . 2 . . 1 4 . . 1 . 1 . . Recycler 1 | . . . . 1 . . . . . . . . . . . Operator 2 | . . . . 2 . . . . . . . . . . . Watcher 10 | . . . . 1 . . 5 . . . 3 . 1 . . Swarmer 16 | . . . . 6 . . 6 4 . . . . . . . Cutter 1 | . . . . . . . . . . . . . . . 1 Grunt 37 | . . 1 . 7 . . 7 12 . 3 6 . 1 . . Brawler 1 | . . . . . . . . . . 1 . . . . . Sentry 11 | . . . . 3 . . 4 1 . . 3 . . . . Specialist 2 | . . . . . . . . 2 . . . . . . . Hunter 2 | . . . . 2 . . . . . . . . . . . Programmer 6 | . . . . . . . 2 2 . . 2 . . . . Heavy 1 | . . . . . . . . 1 . . . . . . . Compactor 2 | . . . . . . 1 . . . . . 1 . . . Subdweller 3 | . . . 3 . . . . . . . . . . . . Best Kill Streak 8 | . 1 1 2 8 . 1 4 6 . 4 5 1 1 . 1 Combat Bots Only 6 | . . 1 2 5 . 1 4 6 . 4 3 1 1 . 1 Max Kills in Single Turn 2 | . 1 1 1 2 . 1 2 2 . 1 1 1 1 . 1 Gunslinging 1 | . . . . . . . . 1 . . . . . . . Exploded 2 | . . . . 2 . . . . . . . . . . 1 Melee 1 | . . . . . . . . . . . . . 1 . . Uniques/NPCs Destroyed . | . . . . . . . . . . . . . . . . Combat | -11 -10 -10 -10 -8 -7 -7 -7 -6 -6 -6 -5 -5 -5 -4 -4 -------- Run | Yrd Mat Min Sub Mat Fac Was Fac Fac Low Low Fac Was Fac Fac DSF Hostile Shots Fired 518 | . 8 . 25 74 . . 134 103 1 35 41 8 39 . 50 Missed 142 | . 4 . 6 17 . . 47 28 . 5 7 . 20 . 8 Damage Taken 6202 | . 34 10 434 855 . 62 1061 760 9 391 355 320 362 . 1549 Core 1684 | . 18 . 66 102 . . 66 17 . 67 29 67 86 . 1166 Absorbed by Shields 1279 | . . . . . . . . 651 10 190 374 54 . . . Reduced by Siege Mode 195 | . . . . . . . 27 47 . 47 30 44 . . . Redirected to Shielding 210 | . . . . . . . 151 . . . . . 11 . 48 Ignored by Resistances 172 | . . . . 47 . 7 113 . . . . . 5 . . Core Remaining (%) 84 | 100 . . 66 81 . . 90 . . 90 . . 81 . . Volleys Fired 251 | . 12 4 26 45 . 6 55 55 . 10 28 10 . . . Largest 3 | . 1 1 2 2 . 2 2 2 . 2 3 3 . . . Hottest 225 | . 40 40 130 110 . 160 160 150 . 150 225 225 . . . Shots Fired 478 | . 12 4 43 69 . 12 103 110 . 20 84 21 . . . Gun 462 | . 12 4 40 57 . 12 103 110 . 20 84 20 . . . Cannon 1 | . . . . . . . . . . . . 1 . . . Launcher 12 | . . . . 12 . . . . . . . . . . . Special 3 | . . . 3 . . . . . . . . . . . . Kinetic 30 | . . . 18 12 . . . . . . . . . . . Thermal 353 | . . . 6 2 . 7 103 110 . 20 84 21 . . . Explosive . | . . . . . . . . . . . . . . . . Electromagnetic 95 | . 12 4 19 55 . 5 . . . . . . . . . Robot Hit Streak 81 | . 3 3 18 11 . 18 26 58 . 73 81 38 . . . Robot Miss Streak 4 | . 4 2 4 3 . 2 4 3 . 2 3 1 . . . Penetration Max . | . . . . . . . . . . . . . . . . Secondary Targets 11 | . . . . 3 . . 2 4 . 2 . . . . . Max Gunslinging Chain 1 | . . . . 1 . . 1 1 . 1 . . . . . Shots Hit Robots 409 | . 4 2 28 52 . 9 90 99 . 19 72 21 12 . 1 Core Hits 527 | . 2 2 10 48 . 9 98 178 . 32 127 16 5 . . Critical Kills . | . . . . . . . . . . . . . . . . Critical Parts Destroyed . | . . . . . . . . . . . . . . . . Critical Strikes 5 | . . 1 1 . . . . . . . . . 3 . . Burn 1 | . . . 1 . . . . . . . . . . . . Corrupt 1 | . . 1 . . . . . . . . . . . . . Sever 3 | . . . . . . . . . . . . . 3 . . Melee Attacks 39 | . . . . . . . . . . . . . 24 . 15 Impact 17 | . . . . . . . . . . . . . 2 . 15 Slashing 22 | . . . . . . . . . . . . . 22 . . Piercing . | . . . . . . . . . . . . . . . . Sneak Attacks 2 | . . . . . . . . . . . . . 2 . . Combat Hostiles . | . . . . . . . . . . . . . . . . Follow-up Attacks . | . . . . . . . . . . . . . . . . Damage Inflicted 12682 | . 70 104 508 2330 . 185 2420 2949 . 572 2258 703 527 . 56 Guns 10469 | . 70 27 496 835 . 185 2419 2949 . 572 2246 670 . . . Cannons 33 | . . . . . . . . . . . . 33 . . . Explosions 1567 | . . 77 . 1490 . . . . . . . . . . . Melee 583 | . . . . . . . . . . . . . 527 . 56 Ramming 18 | . . . . 5 . . 1 . . . 12 . . . . Kinetic 1518 | . . . 236 1282 . . . . . . . . . . . Thermal 9375 | . . 77 43 264 . 102 2419 2949 . 572 2246 703 . . . Explosive . | . . . . . . . . . . . . . . . . Electromagnetic 1188 | . 70 27 229 779 . 83 . . . . . . . . . Impact 56 | . . . . . . . . . . . . . . . 56 Slashing 527 | . . . . . . . . . . . . . 527 . . Piercing . | . . . . . . . . . . . . . . . . Highest Corruption 14 | . . . . 8 . . 3 . . . . 10 14 . . Average Corruption 7 | . . . . 6 . . 2 . . . . 10 10 . . Corruption Purged . | . . . . . . . . . . . . . . . . Corruption Blocked . | . . . . . . . . . . . . . . . . Effects 28 | . . . . . . . 9 . . . . 3 16 . . Message Errors 7 | . . . . . . . 3 . . . . . 4 . . Matter Fused 4 | . . . . . . . 1 . . . . . 3 . . Heat Flow Errors 3 | . . . . . . . 1 . . . . 1 1 . . Energy Discharges 7 | . . . . . . . 2 . . . . 2 3 . . Data Loss (minor) 5 | . . . . . . . 2 . . . . . 3 . . Data Loss (major) 1 | . . . . . . . . . . . . . 1 . . Misdirections 1 | . . . . . . . . . . . . . 1 . . Overload Shots . | . . . . . . . . . . . . . . . . Overflow Damage 39 | . . . . 7 . . . . . . . . 26 . 6 Projectiles . | . . . . . . . . . . . . . . . . Explosions 7 | . . . . 7 . . . . . . . . . . . Melee 32 | . . . . . . . . . . . . . 26 . 6 Knockbacks 1 | . . . . 1 . . . . . . . . . . . Impact 1 | . . . . 1 . . . . . . . . . . . Kinetic . | . . . . . . . . . . . . . . . . Secondary . | . . . . . . . . . . . . . . . . Self-Inflicted Damage 195 | . . . . 132 . 63 . . . . . . . . . Shots 5 | . . . . 4 . 1 . . . . . . . . . Rammed 3 | . . . . . . . 1 . . . 2 . . . . Targets Rammed 4 | . . . . 1 . . 1 . . . 2 . . . . Kicked 1 | . . . . 1 . . . . . . . . . . . Crushed . | . . . . . . . . . . . . . . . . Highest Temperature 467 | . . 6 27 467 . 45 205 333 . 432 125 261 257 . . Average Temperature 100 | . . 6 15 137 . 20 58 109 . 242 41 83 137 . . Received Heat Transfer 1068 | . . 6 . 279 . . 303 160 . 190 85 . 45 . . Effects 10 | . . . . 5 . . . 2 . 3 . . . . . Shutdowns 7 | . . . . 3 . . . 1 . 3 . . . . . Interference 1 | . . . . 1 . . . . . . . . . . . Short Circuit 1 | . . . . 1 . . . . . . . . . . . Damage (minor) 1 | . . . . . . . . 1 . . . . . . . Siege Activations 21 | . . . . . . . 7 7 . 1 5 1 . . . Total Turns 482 | . . . . . . . 153 130 . 44 136 19 . . . Longest Duration 62 | . . . . . . . 58 36 . 44 62 19 . . . Robots Corrupted 1 | . . . . 1 . . . . . . . . . . . Combat Hostiles 1 | . . . . 1 . . . . . . . . . . . Parts Fried 6 | . . . 2 4 . . . . . . . . . . . Impact Corruptions 1 | . . . . . . . . . . . . . . . 1 Robots Melted 1 | . . . . . . . 1 . . . . . . . . Combat Hostiles 1 | . . . . . . . 1 . . . . . . . . Parts Melted 12 | . . . . . . . 8 2 . . 2 . . . . Heat Transferred 10723 | . . 100 228 345 . 195 4515 2415 . 480 1840 605 . . . Parts Sabotaged . | . . . . . . . . . . . . . . . . Parts Stolen . | . . . . . . . . . . . . . . . . Parts Stripped . | . . . . . . . . . . . . . . . . Power Chain Reactions 6 | . . 1 . 4 . 1 . . . . . . . . . Alert | -11 -10 -10 -10 -8 -7 -7 -7 -6 -6 -6 -5 -5 -5 -4 -4 ------- Run | Yrd Mat Min Sub Mat Fac Was Fac Fac Low Low Fac Was Fac Fac DSF Peak Influence 399 | . 7 67 . 399 154 75 293 388 . . 287 64 127 37 35 Initial 175 | . . 2 . . 154 53 . 132 . . 175 64 . 37 25 Average 144 | . . 6 . 256 154 49 153 206 . . 177 33 48 37 20 Maximum Alert Level 1 | . . . . 1 . . 1 1 . . 1 . . . . Low Security (%) 67 | 100 100 100 . 20 100 100 57 59 . . 70 100 100 100 100 Level 1 32 | . . . . 79 . . 42 40 . . 29 . . . . Level 2 . | . . . . . . . . . . . . . . . . Level 3 . | . . . . . . . . . . . . . . . . Level 4 . | . . . . . . . . . . . . . . . . Level 5 . | . . . . . . . . . . . . . . . . High Security . | . . . . . . . . . . . . . . . . Max Security . | . . . . . . . . . . . . . . . . Squads Dispatched 28 | . 2 . . 2 . . 6 9 . . 2 . 6 . 1 Investigation 3 | . 1 . . . . . . . . . . . 2 . . Extermination 5 | . . . . . . . 1 2 . . 1 . 1 . . Reinforcement 14 | . 1 . . 2 . . 2 4 . . 1 . 3 . 1 Assault . | . . . . . . . . . . . . . . . . Garrison 6 | . . . . . . . 3 3 . . . . . . . Intercept . | . . . . . . . . . . . . . . . . Searches Triggered . | . . . . . . . . . . . . . . . . Construction Impeded . | . . . . . . . . . . . . . . . . Haulers Reinforced 5 | . . . . . . . 1 2 . . 1 . 1 . . Active Scanning Responses . | . . . . . . . . . . . . . . . . Cargo Convoy Interrupts . | . . . . . . . . . . . . . . . . Stealth | -11 -10 -10 -10 -8 -7 -7 -7 -6 -6 -6 -5 -5 -5 -4 -4 --------- Run | Yrd Mat Min Sub Mat Fac Was Fac Fac Low Low Fac Was Fac Fac DSF Distress Signals 4 | . . . . 2 . . . . . . 2 . . . . Communications Jammed . | . . . . . . . . . . . . . . . . Distress Signals . | . . . . . . . . . . . . . . . . Times Spotted 147 | . 5 2 6 23 . 1 32 25 3 10 16 5 14 . 5 Peak Tracking Total 8 | . 3 2 3 5 . 1 5 5 4 7 5 4 8 . 5 Tactical Retreats 9 | . . . 1 . . . 2 1 . . 1 . 2 . 2 Traps | -11 -10 -10 -10 -8 -7 -7 -7 -6 -6 -6 -5 -5 -5 -4 -4 ------- Run | Yrd Mat Min Sub Mat Fac Was Fac Fac Low Low Fac Was Fac Fac DSF Traps Triggered 5 | . . . . . 1 . . . . . 3 . 1 . . Indirectly . | . . . . . . . . . . . . . . . . Trap Hack Attempts . | . . . . . . . . . . . . . . . . Triggered . | . . . . . . . . . . . . . . . . Disarmed . | . . . . . . . . . . . . . . . . Reprogrammed . | . . . . . . . . . . . . . . . . Reused . | . . . . . . . . . . . . . . . . Traps Extracted . | . . . . . . . . . . . . . . . . Installed . | . . . . . . . . . . . . . . . . Triggered 1 | . . . . . . . . . . . . . . . 1 Most Traps Carried 1 | . . . 1 1 . . . . . . . . . . . Machines | -11 -10 -10 -10 -8 -7 -7 -7 -6 -6 -6 -5 -5 -5 -4 -4 ---------- Run | Yrd Mat Min Sub Mat Fac Was Fac Fac Low Low Fac Was Fac Fac DSF Machines Disabled 4 | . . . . 4 . . . . . . . . . . . Max in Single Turn 2 | . . . . 2 . . . . . . . . . . . Garrison Access 1 | . . . . . . . 1 . . . . . . . . Machines Repaired . | . . . . . . . . . . . . . . . . Machines Dismantled . | . . . . . . . . . . . . . . . . Machines Sabotaged . | . . . . . . . . . . . . . . . . Overloaded Fab Kills . | . . . . . . . . . . . . . . . . Hacking | -11 -10 -10 -10 -8 -7 -7 -7 -6 -6 -6 -5 -5 -5 -4 -4 --------- Run | Yrd Mat Min Sub Mat Fac Was Fac Fac Low Low Fac Was Fac Fac DSF Machines Accessed 15 | . . . . 1 . . 5 1 . . 1 . 5 2 . Terminals 8 | . . . . 1 . . 3 . . . 1 . 2 1 . Fabricators 3 | . . . . . . . . . . . . . 2 1 . Repair Stations 1 | . . . . . . . . . . . . . 1 . . Recycling Units . | . . . . . . . . . . . . . . . . Scanalyzers . | . . . . . . . . . . . . . . . . Garrison Access 3 | . . . . . . . 2 1 . . . . . . . Total Hacks 32 | . . . . 3 . . 8 2 . . 2 . 13 4 . Successful 9 | . . . . 1 . . 1 . . . 1 . 4 2 . Failed 23 | . . . . 2 . . 7 2 . . 1 . 9 2 . Catastrophic 9 | . . . . 2 . . 3 . . . . . 4 . . Database Lockouts . | . . . . . . . . . . . . . . . . Manual 10 | . . . . 2 . . 3 . . . . . 5 . . Terminals 15 | . . . . 3 . . 4 . . . 2 . 5 1 . Fabricators 10 | . . . . . . . . . . . . . 7 3 . Repair Stations 1 | . . . . . . . . . . . . . 1 . . Recycling Units . | . . . . . . . . . . . . . . . . Scanalyzers . | . . . . . . . . . . . . . . . . Garrison Access 6 | . . . . . . . 4 2 . . . . . . . Terminal Hacks 4 | . . . . 1 . . . . . . 1 . 1 1 . Open DSF 1 | . . . . . . . . . . . . . . 1 . Zone Layout 3 | . . . . 1 . . . . . . 1 . 1 . . Fabricator Hacks 3 | . . . . . . . . . . . . . 2 1 . Build 3 | . . . . . . . . . . . . . 2 1 . Repair Station Hacks . | . . . . . . . . . . . . . . . . Recycling Unit Hacks . | . . . . . . . . . . . . . . . . Scanalyzer . | . . . . . . . . . . . . . . . . Garrison Access Hacks 1 | . . . . . . . 1 . . . . . . . . Seal Access 1 | . . . . . . . 1 . . . . . . . . Unauthorized Hacks 1 | . . . . . . . . . . . . . 1 . . Terminals . | . . . . . . . . . . . . . . . . Fabricators 1 | . . . . . . . . . . . . . 1 . . Liberate 1 | . . . . . . . . . . . . . 1 . . Repair Stations . | . . . . . . . . . . . . . . . . Recycling Units . | . . . . . . . . . . . . . . . . Scanalyzers . | . . . . . . . . . . . . . . . . Garrison Access . | . . . . . . . . . . . . . . . . Data Cores Recovered . | . . . . . . . . . . . . . . . . Used . | . . . . . . . . . . . . . . . . Hacking Detections 14 | . . . . 1 . . 5 1 . . 1 . 5 1 . Full Trace Events 1 | . . . . . . . . . . . . . 1 . . Feedback Events . | . . . . . . . . . . . . . . . . Feedback Blocked . | . . . . . . . . . . . . . . . . Robot Schematics Acquired . | . . . . . . . . . . . . . . . . Robots Built 2 | . . . . . . . . . . . . . 1 1 . Authchips . | . . . . . . . . . . . . . . . . Time 192 | . . . . . . . . . . . . . 40 152 . Total Robot Build Rating 6 | . . . . . . . . . . . . . 1 5 . Part Schematics Acquired . | . . . . . . . . . . . . . . . . Parts Built 1 | . . . . . . . . . . . . . 1 . . Authchips . | . . . . . . . . . . . . . . . . Time 128 | . . . . . . . . . . . . . 128 . . Total Part Build Rating 8 | . . . . . . . . . . . . . 8 . . Parts Repaired . | . . . . . . . . . . . . . . . . Time . | . . . . . . . . . . . . . . . . Parts Recycled . | . . . . . . . . . . . . . . . . Recycled Matter . | . . . . . . . . . . . . . . . . Retrieved Matter . | . . . . . . . . . . . . . . . . Retrieved Components . | . . . . . . . . . . . . . . . . Parts Scanalyzed . | . . . . . . . . . . . . . . . . Part Schematics Acquired . | . . . . . . . . . . . . . . . . Parts Damaged . | . . . . . . . . . . . . . . . . Bothacking | -11 -10 -10 -10 -8 -7 -7 -7 -6 -6 -6 -5 -5 -5 -4 -4 ------------ Run | Yrd Mat Min Sub Mat Fac Was Fac Fac Low Low Fac Was Fac Fac DSF Used RIF Installer . | . . . . . . . . . . . . . . . . Robots Hacked . | . . . . . . . . . . . . . . . . Non-combat . | . . . . . . . . . . . . . . . . Combat . | . . . . . . . . . . . . . . . . Robot Hacks Applied . | . . . . . . . . . . . . . . . . Relay Couplers Released 4 | . . . . . . . 4 . . . . . . . . Programmers 4 | . . . . . . . 4 . . . . . . . . Fabnet Peak Effective % . | . . . . . . . . . . . . . . . . Robots Rewired . | . . . . . . . . . . . . . . . . Allies Hacked . | . . . . . . . . . . . . . . . . Hacks Repelled . | . . . . . . . . . . . . . . . . Allies | -11 -10 -10 -10 -8 -7 -7 -7 -6 -6 -6 -5 -5 -5 -4 -4 -------- Run | Yrd Mat Min Sub Mat Fac Was Fac Fac Low Low Fac Was Fac Fac DSF Total Allies 8 | . . 3 . . . . . . . . . . 4 1 . Largest Group 3 | . . 3 3 . . . . . . . . . 3 1 1 Highest-Rated Group 87 | . . 40 40 . . . . . . . . . 87 23 23 Highest-Rated Ally 29 | . . 16 16 . . . . . . . . . 29 23 23 Total Orders . | . . . . . . . . . . . . . . . . Ally Attacks 21 | . . 11 10 . . . . . . . . . . . . Total Damage 241 | . . 117 124 . . . . . . . . . . . . Kills 2 | . . 1 1 . . . . . . . . . . . . Allies Corrupted . | . . . . . . . . . . . . . . . . Allies Melted . | . . . . . . . . . . . . . . . . Intel | -11 -10 -10 -10 -8 -7 -7 -7 -6 -6 -6 -5 -5 -5 -4 -4 ------- Run | Yrd Mat Min Sub Mat Fac Was Fac Fac Low Low Fac Was Fac Fac DSF Robot Analysis Total . | . . . . . . . . . . . . . . . . Derelict Logs Recovered . | . . . . . . . . . . . . . . . . Drone Launches . | . . . . . . . . . . . . . . . . Drone Recoveries . | . . . . . . . . . . . . . . . . Exploration | -11 -10 -10 -10 -8 -7 -7 -7 -6 -6 -6 -5 -5 -5 -4 -4 ------------- Run | Yrd Mat Min Sub Mat Fac Was Fac Fac Low Low Fac Was Fac Fac DSF Turns Passed 8803 | 52 153 581 1356 1140 47 502 1551 1079 331 109 1046 101 490 180 85 Spaces Moved 4715 | 38 98 92 787 498 24 291 739 507 207 31 371 67 770 120 75 Core 109 | 4 . . . . . . . . . . . 54 41 . 10 Treads 2085 | . . . . . . 217 739 507 207 31 371 13 . . . Legs 1607 | 34 98 92 787 498 24 74 . . . . . . . . . Wheels 13 | . . . . . . . . . . . . . 13 . . Hover . | . . . . . . . . . . . . . . . . Flight 901 | . . . . . . . . . . . . . 716 120 65 Fastest Speed 28 | 50 120 120 120 120 125 125 160 160 160 160 160 50 31 31 28 Average Speed 136 | 112 120 120 157 184 125 151 160 160 160 160 218 86 32 31 38 Slowest Speed 240 | 120 120 120 190 200 125 160 160 160 160 160 240 240 80 31 50 Overloaded Moves . | . . . . . . . . . . . . . . . . Propulsion Burnouts . | . . . . . . . . . . . . . . . . Robots Hopped 14 | . . . . . . . . . . . . . 13 . 1 Cave-ins Triggered . | . . . . . . . . . . . . . . . . Exploration Rate (%) 31 | 3 25 20 53 46 1 80 27 19 44 9 10 65 24 2 76 Regions Visited 15 Branch Regions 4 Pre-discovered Areas 1 | . . . 1 . . . . . . . . . . . . Known Exits Taken 1 | . . . . . . . . . . . . . . 1 . Unknown Exits Taken 10 | 1 1 1 1 1 . . 1 1 1 1 . . 1 . . Scrap Searched 8 | . . . 7 . . . . . 1 . . . . . . Spaces Dug 5 | . . . . . . . . . . . . . 5 . . Terrain Destroyed 146 | . . 9 . 122 . 10 . . . . . . 5 . . Melee 5 | . . . . . . . . . . . . . 5 . . Projectile . | . . . . . . . . . . . . . . . . AOE 141 | . . 9 . 122 . 10 . . . . . . . . . Terrain Rammed . | . . . . . . . . . . . . . . . . Walls Destroyed . | . . . . . . . . . . . . . . . . Machines Disabled . | . . . . . . . . . . . . . . . . Actions | -11 -10 -10 -10 -8 -7 -7 -7 -6 -6 -6 -5 -5 -5 -4 -4 --------- Run | Yrd Mat Min Sub Mat Fac Was Fac Fac Low Low Fac Was Fac Fac DSF Total 6519 | 44 122 558 862 650 42 346 992 669 207 71 543 91 957 262 103 Wait 1242 | . 6 463 12 54 16 9 168 74 . 30 115 7 145 140 3 Move 4674 | 37 97 91 786 497 24 290 738 506 206 30 371 66 743 119 73 Hop 14 | . . . . . . . . . . . . . 13 . 1 Pick Up 89 | 1 6 . 14 15 . 8 12 6 1 . 15 3 7 1 . Fast Attach 63 | 6 . . 5 10 . 7 3 4 . . 4 1 11 1 11 Attach 37 | . . . 2 6 2 3 6 5 . 1 4 2 6 . . Detach 2 | . 1 . . . . . . . . . 1 . . . . Swap 20 | . . . 4 6 . 2 . 6 . . 1 . 1 . . Drop 83 | . . . 13 16 . 19 9 13 . . 2 2 8 1 . Fire 251 | . 12 4 26 45 . 6 55 55 . 10 28 10 . . . Melee 38 | . . . . . . . . . . . . . 23 . 15 Ram . | . . . . . . . . . . . . . . . . Kick 1 | . . . . 1 . . . . . . . . . . . Crush 3 | . . . . . . . 1 . . . 2 . . . . Escape Stasis . | . . . . . . . . . . . . . . . . Rewire 2 | . . . . . . 2 . . . . . . . . . Trap . | . . . . . . . . . . . . . . . . Miscellaneous . | . . . . . . . . . . . . . . . . Route ------- -11/Scrapyard -10/Materials -10/Mines -10/Subcaves -8/Materials -7/Factory -7/Waste -7/Factory -6/Factory -6/Lower Caves -6/Lower Caves -5/Factory -5/Waste -5/Factory -4/Factory -4/DSF (discovered 1 exit: [*Res]) History --------- Turn | Location | Event 6 | -11/Scrapyard | Discovered new exit (range 15) 53 | -11/Scrapyard | Entered Materials 165 | -10/Materials | Discovered new exit (range 7) 206 | -10/Materials | Entered Mines 306 | -10/Mines | Build established: Mutant 669 | -10/Mines | Discovered new exit (range 6) 731 | -10/Mines | Assisted by bots powering up and referring to "LRC-V3" 787 | -10/Mines | Entered Subcaves 787 | -10/Subcaves | Accompanied by 3 allies 1226 | -10/Subcaves | Disturbed a concealed Subdweller 1345 | -10/Subcaves | Shifting Twisted Machinery released Sub. Shrapnel Launcher 1346 | -10/Subcaves | Shifting Twisted Machinery released Hvy. Riot Gun 1567 | -10/Subcaves | Shifting Twisted Machinery released Mak. Leg 1571 | -10/Subcaves | Shifting Twisted Machinery released Mak. System Shield 1666 | -10/Subcaves | A swath of the cavern ceiling suddenly collapsed 1795 | -10/Subcaves | Learned location of Zion (-6) 1795 | -10/Subcaves | Met a Zionite searching for "candidates" 2046 | -10/Subcaves | Discovered new exit (range 8) 2143 | -10/Subcaves | Entered Materials 2143 | -8/Materials | Evolved 4 slots: Power x1, Propulsion x1, Utility x2 3245 | -8/Materials | Discovered new exit (range 16) 3283 | -8/Materials | Entered Factory 3283 | -7/Factory | Evolved 2 slots: Propulsion x1, Utility x1 3330 | -7/Factory | Sucked down chute 3330 | -7/Factory | Entered Waste 3330 | -7/Waste | The area was eerily silent 3629 | -7/Waste | Discovered new exit (range 16) 3650 | -7/Waste | A Compactor rumbled back to life 3650 | -7/Waste | Spotted C-40 Crusher 3680 | -7/Waste | Destroyed C-40 Crusher 3787 | -7/Waste | Build established: Scavenger-Mutant 3832 | -7/Waste | Entered Factory 4869 | -7/Factory | Garrison activated, responded to threat 4919 | -7/Factory | Lost 3 parts (2u1w) 5152 | -7/Factory | Build established: Mutant 5204 | -7/Factory | Discovered new exit (range 15) 5383 | -7/Factory | Entered another Factory area 5383 | -6/Factory | Evolved 2 slots: Power x1, Utility x1 5696 | -6/Factory | Build established: Scavenger-Mutant 6212 | -6/Factory | Garrison activated, responded to threat 6347 | -6/Factory | Garrison activated, responded to threat 6375 | -6/Factory | Discovered new exit (range 15) 6462 | -6/Factory | Entered Lower Caves 6780 | -6/Lower Caves | Discovered new exit (range 9) 6793 | -6/Lower Caves | Ambushed by wild Derelicts 6793 | -6/Lower Caves | Entered another Lower Caves area 6894 | -6/Lower Caves | Discovered new exit (range 6) 6900 | -6/Lower Caves | Attracted the attention of an 0b10 outpost 6902 | -6/Lower Caves | Entered Factory 6902 | -5/Factory | Evolved 2 slots: Utility x1, Weapon x1 7203 | -5/Factory | Build established: Scavenger-Tank 7948 | -5/Factory | Sucked down chute 7948 | -5/Factory | Entered Waste 7963 | -5/Waste | EMP discharged 7963 | -5/Waste | System corruption reached 10% 7968 | -5/Waste | Spotted C-40 Crusher 7972 | -5/Waste | Spotted C-40 Crusher 7993 | -5/Waste | Crushed by Compactor (1 part destroyed, 2 dropped) 7996 | -5/Waste | Crushed by Compactor (1 part destroyed, 1 dropped) 7999 | -5/Waste | Crushed by Compactor (1 part destroyed, 2 dropped) 7999 | -5/Waste | Destroyed C-40 Crusher 8004 | -5/Waste | Crushed by Compactor (1 part destroyed, 1 dropped) 8007 | -5/Waste | Crushed by Compactor (1 part destroyed, 2 dropped) 8010 | -5/Waste | Crushed by Compactor (1 part destroyed) 8020 | -5/Waste | Crushed by Compactor (1 part destroyed) 8026 | -5/Waste | Spotted C-40 Crusher 8028 | -5/Waste | Spotted C-40 Crusher 8030 | -5/Waste | Spotted C-40 Crusher 8041 | -5/Waste | Discovered new exit (range 16) 8049 | -5/Waste | Entered Factory 8051 | -5/Factory | Lost 8 parts (1p1n3u3w) 8112 | -5/Factory | Fabricated R-06 Scavenger? 8246 | -5/Factory | Fabricated Gamma Bomb Array (x1) 8373 | -5/Factory | Build established: Sprinter 8535 | -5/Factory | Discovered new exit (range 16) 8539 | -5/Factory | Entered another Factory area 8539 | -4/Factory | Evolved 2 slots: Propulsion x2 8557 | -4/Factory | Identified exit to DSF 8704 | -4/Factory | Fabricated M-22 Extractor? 8719 | -4/Factory | Entered DSF 8719 | -4/DSF | Accompanied by 1 ally 8734 | -4/DSF | Additional patrols routed to DSF 8772 | -4/DSF | Core integrity fell below 50% 8786 | -4/DSF | Core integrity fell below 20% 8801 | -4/DSF | Discovered new exit (range 15) 8804 | -4/DSF | Destroyed by H-71 Marshal with Heavy Mass Driver Last Messages --------------- 08778_ Acquired Nuclear Pulse Thruster. 08778_ Nuclear Pulse Thruster severed. 08778_ Field strength at 23. 08779_ Field strength at 12. 08779_ Acquired Nuclear Pulse Thruster. 08780_ Field strength at 1. 08780_ Knocked back. 08781_ Acquired 10 matter. 08781_ Nuclear Pulse Thruster severed. 08781_ Acquired Nuclear Pulse Thruster. 08783_ Stasis field depleted. 08785_ Knocked back. 08790_ Acquired Q-thruster. 08795_ Q-thruster destroyed. 08796_ Acquired Q-thruster. 08799_ Penetrated by Slug. 08799_ Knocked back. 08800_ Q-thruster destroyed. 08801_ EXIT=FOUND 08804_ Acquired Mic. Fission Core. Map ----- +----------------------------------------------------+ | | | | | | | | | | | | | | | | | | | | | | | | | | | | | | | | | | | ????????????????????????????????????????????????? | | ????????????????????????????????????????????????? | | ????????????????????????????????????????????????? | | ????????????????????????????????????????????????? | | ????????????????????????????????????????????????? | | ????????????????????????????????????????????????? | | ????????????????????#########???????????????????? | | ????????????????###?# ***==#???????????????????? | | ??????????""## # # *@*==#???????????????????? | | ????????"< c #???????????????????? | | ????????" % #???????????????????? | | ????????" x## #!!!### ###???????????????????? | | ????????????????#!!?### ###???????????????????? | | ????????????????#???#== % #???????????????????? | | ????????????????????#== #???????????????????? | | ????????????????????#== #???????????????????? | | ????????????????????### ###???????????????????? | | ????????????????????# !!#???????????????????? | | ????????????????????#%= !!#???????????????????? | | ????????????????????# !!#???????????????????? | | ????????????????????### #################?????? | | ?????????????????????## ###]]]#!!!## !!##????? | | ????????????????#!!!## H ##]]]#!!!## !!%#????? | | ??????????? ^%=="#????? | | ?????????? ^/==##????? | | ??????????? % ^ ==#?????? | | ???????????##!!!#]]]## ##!!!# ## #?????? | | ????????????#!??#]]]?## ###!!!# ## #?????? | | ????????????????###??## #?########## ###?????? | | ?????????????????????!! =????????#!! !#??????? | | ????????????????????#!! =????????#!! !#??????? | | ????????????????????#!! =????????#!! !#??????? | | ????????????????????### ""???????### ##??????? | +----------------------------------------------------+ Best States ------------- Heat Dissipation 94 Energy Generation 45 Energy Capacity 590 Matter Stores 300 Matter Capacity 300 Sight Range 16 Robot Scan Range 16 Terrain Scan Density 10 Armor Coverage 750 Resistance: KI 30 Resistance: TH 10 Resistance: EM 25 Propulsion Shielding 66 Weapon Shielding 66 Evasion (%) 71 Targeting Accuracy 20 Recoil Reduction 4 Force Boost 20 Offensive Hacking 10 Item Schematics ----------------- None Robot Schematics ------------------ None Fabricated ------------ R-06 Scavenger | x1 | -5/Factory | Preloaded Gamma Bomb Array | x1 | -5/Factory | Preloaded M-22 Extractor | x1 | -4/Factory | Preloaded Alien Tech Used ----------------- None Achievements -------------- None Challenges ------------ None Game ------ Seed ZionitePhaseLeg Manual? 0 Play Time 00:54:35 Cumulative 450.4 hours Start 2024.04.04 @ 19:02:01 End 2024.04.06 @ 16:45:51 Sessions 3 Manual Loads 0 Difficulty Rogue Special Mode None Game No. 777 Rogue 622 Adventurer 148 Explorer 7 Win Type - Total 20 Types 16/1/2/1/0/0/0/0/0 Lore% 77 Gallery% 89 Achievement% 74 Wizard Run 0 Options --------- Layout 1 ASCII 0 Keyboard 0 Movement Numpad Keybinds 0 Fullscreen 2 Font 24/Smallcaps Map View 50x35 Zoom Use 0% Tactical HUD 1 Map Filters NONE Filters NONE Steam 1 RUN: 0fe968f7-4fb6-4225-8ab5-2c888ddd9c12